Cogmind - Beta 15 @@@ ROGUE MODE // 2025.07.26 @ 20:11:59 Player: GiggleBox Result: Destroyed by B-90 Cyclops with Nova Cannon Performance ------------- Evolutions (8) 4000 Regions Visited (27) 5400 Robots Destroyed (356) 1780 Value Destroyed (16173) 16173 Prototype IDs (65) 1300 Alien Tech Used (4) 800 Bonus (7332) 7332 TOTAL SCORE: 36785 Bonus ------- High Alert Combat Kills 592 Follower Combat Kills 1100 Entered Garrisons 200 Network Hubs Disabled 200 Destroyed Z-Imprinter 1000 Acquired ECA 300 Met Warlord at Base 500 MAIN.C Attacked Warlord 500 Warlord Defense Kills 846 Met R17 at Cetus 500 Met R17 at Research 2000 Friendly Fire -406 Cogmind --------- Core Integrity 0/1450 Matter 13/300 Energy 100/100 System Corruption 30% Temperature Cool (19) Movement Core (50) Location -2/Section 7 Parts ------- > --- POWER (3) -------- (None) > --- PROPULSION (7) --- (None) > --- UTILITY (10) ----- (None) > --- WEAPON (4) ------- (None) > --- INVENTORY (5) ---- (None) Peak State ------------ > --- POWER ------------ Antimatter Reactor Vortex Chain Reactor > --- PROPULSION ------- Enhanced Biometal Leg Enhanced Biometal Leg Enhanced Biometal Leg Centrium Leg Centrium Leg Heavy Shield Leg > --- UTILITY ---------- Experimental Heat Sink Huge Storage Unit Spectral Analyzer Experimental Targeting Computer Core Analyzer Armor Integrity Analyzer Advanced Transmission Jammer Improved Medium Armor Plating Advanced Force Field Long-range Tractor Beam > --- WEAPON ----------- Core Cannon Railgun Railgun > --- INVENTORY -------- Medium Armored Exoskeleton Myomer Leg Myomer Leg Shield Leg Biometal Leg Advanced Cryofiber Web Advanced Heat Sink Long-range Sensor Array Advanced Terrain Scan Processor Matter Filter Experimental Phase Shifter Experimental EM Shield Advanced Point Defense System Improved Dynamic Insulation System Advanced Corruption Screen Coil Gun Railgun Linear Accelerator Enhanced Hardcell Cannon Enhanced Hardcell Cannon Hellfire Missile Launcher Heavy Mace CR-A16's Pointy Stick [Rating: 205] Favorites ----------- Power Zionite Light DM Reactor Engine Improved Deuterium Engine Power Core Reinforced Fission Core Reactor Zionite Light DM Reactor Propulsion Advanced Treads Treads Advanced Treads Leg Enhanced Biometal Leg Hover Unit Zionite Glidesys I Utility Improved Targeting Computer Device Experimental Heat Sink Storage Huge Storage Unit Processor Improved Targeting Computer Protection Medium Armor Plating Weapon KE Penetrator Energy Gun Zionite Phaser-S Energy Cannon Vortex Cannon Ballistic Gun KE Penetrator Ballistic Cannon Magnetic Acceleration Cannon Launcher Heavy Rocket Launcher Impact Weapon Heavy Hammer Piercing Weapon CR-A16's Pointy Stick Build | -11 -10 -10 -9 -8 -8 -8 -7 -6 -6 -6 -6 -6 -5 -5 -5 -5 -5 -4 -4 -4 -4 -4 -4 -3 -2 -2 -2 ------- Run | Yrd Mat Min Mat Mat Gar Mat Fac Fac Low Low Zio Dee Pro Fac Upp Upp War Pro Fac Ext Cet Arc Hub Res Res Qua Sec Slots Evolved 16 | . . . 2 2 . . 2 2 . . . . . 2 . . . . 2 . . . . 2 2 . . Power 2 | . . . . . . . . . . . . . . 1 . . . . . . . . . . 1 . . Propulsion 5 | . . . 1 1 . . . . . . . . . 1 . . . . 1 . . . . . 1 . . Utility 7 | . . . . 1 . . 1 2 . . . . . . . . . . 1 . . . . 2 . . . Weapon 2 | . . . 1 . . . 1 . . . . . . . . . . . . . . . . . . . . Parts Attached 241 | 7 10 3 21 19 6 7 18 5 4 4 3 24 3 6 4 1 13 1 5 4 7 2 33 11 10 8 2 Power 23 | 1 1 . 4 . . 1 1 1 . 1 . 2 . 1 . . . . . 2 3 . 3 . 1 1 . Engine 10 | 1 1 . 4 . . 1 1 1 . 1 . . . . . . . . . . . . . . . . . Core 1 | . . . . . . . . . . . . . . . . . . . . 1 . . . . . . . Reactor 12 | . . . . . . . . . . . . 2 . 1 . . . . . 1 3 . 3 . 1 1 . Propulsion 68 | 2 . 1 7 6 5 . 3 . . 1 1 10 . 2 1 . 5 . . . . . 12 4 3 5 . Treads 25 | 2 . 1 6 6 5 . 3 . . 1 1 . . . . . . . . . . . . . . . . Leg 31 | . . . 1 . . . . . . . . 2 . . . . 4 . . . . . 12 4 3 5 . Wheel . | . . . . . . . . . . . . . . . . . . . . . . . . . . . . Hover 12 | . . . . . . . . . . . . 8 . 2 1 . 1 . . . . . . . . . . Flight . | . . . . . . . . . . . . . . . . . . . . . . . . . . . . Utility 74 | 2 4 1 5 7 . 3 5 2 4 . 1 8 1 3 1 1 5 1 2 . 1 . 11 2 2 1 1 Device 36 | 1 2 1 1 . . . 3 . 2 . . 3 . 3 1 . 4 . 2 . . . 7 2 2 1 1 Storage 7 | 1 2 . 1 2 . . . . . . . 1 . . . . . . . . . . . . . . . Processor 12 | . . . 1 . . . 1 2 2 . 1 . . . . 1 1 1 . . . . 2 . . . . Hackware . | . . . . . . . . . . . . . . . . . . . . . . . . . . . . Protection 19 | . . . 2 5 . 3 1 . . . . 4 1 . . . . . . . 1 . 2 . . . . Artifact . | . . . . . . . . . . . . . . . . . . . . . . . . . . . . Weapon 76 | 2 5 1 5 6 1 3 9 2 . 2 1 4 2 . 2 . 3 . 3 2 3 2 7 5 4 1 1 Energy Gun 12 | 1 . . . . . . . . . . 1 4 2 . 1 . 1 . . . 1 . 1 . . . . Energy Cannon 3 | . . . 1 . . . . . . . . . . . . . 1 . . . . . . . . 1 . Ballistic Gun 36 | 1 1 1 3 4 1 3 1 . . 2 . . . . . . 1 . 2 2 2 2 3 3 4 . . Ballistic Cannon 16 | . 3 . . 1 . . 6 2 . . . . . . . . . . . . . . 2 1 . . 1 Launcher 6 | . 1 . 1 1 . . 1 . . . . . . . . . . . 1 . . . . 1 . . . Special Weapon . | . . . . . . . . . . . . . . . . . . . . . . . . . . . . Impact Weapon 2 | . . . . . . . 1 . . . . . . . . . . . . . . . 1 . . . . Slashing Weapon . | . . . . . . . . . . . . . . . . . . . . . . . . . . . . Piercing Weapon 1 | . . . . . . . . . . . . . . . 1 . . . . . . . . . . . . Special Melee Weapon . | . . . . . . . . . . . . . . . . . . . . . . . . . . . . Unidentified Prototypes 43 | . . 1 3 2 . . 2 1 1 . 1 14 . . . . 6 . 1 . 3 . 3 1 1 2 1 Parts Lost 90 | . 2 1 4 . 2 4 5 3 5 6 . 4 2 5 2 . . . 1 1 . . 26 . . 7 10 Power 10 | . 1 . . . . 1 . 1 . 1 . 1 . . . . . . . . . . 3 . . 1 1 Propulsion 27 | . . 1 1 . . . 5 . 1 4 . 3 . 2 1 . . . . . . . 9 . . . . Utility 24 | . . . 2 . . 1 . . 4 . . . . 1 . . . . 1 . . . 5 . . 5 5 Weapon 29 | . 1 . 1 . 2 2 . 2 . 1 . . 2 2 1 . . . . 1 . . 9 . . 1 4 Highest Loss Streak 15 | . 2 1 1 . 2 3 2 2 5 6 . 4 2 4 2 . . . 1 1 . . 15 . . 6 8 To Critical Strikes 3 | . . . . . . . . . . . . . . . . . . . . . . . 2 . . 1 . Average Backups 21 | 1 12 14 17 22 22 24 22 22 21 22 22 22 22 21 23 24 23 21 21 19 20 21 19 17 22 22 13 Power 1 | . . . 1 1 2 1 . . 1 1 2 2 2 1 3 3 3 4 3 1 1 1 1 . . . . Propulsion 3 | . . . 1 5 7 7 4 2 1 . . 1 6 5 4 6 4 2 1 2 4 4 3 1 4 5 4 Utility 8 | . 3 5 7 7 6 9 9 10 8 6 7 8 8 8 9 9 9 9 9 9 10 10 10 9 11 10 5 Weapon 6 | . 7 9 6 7 6 6 8 9 8 7 7 8 5 5 4 5 5 6 6 6 5 5 5 5 7 6 3 Tool/Special . | . . . . . . . . . . . . . . . . . . . . . . . . . . . . Unused Backups 71 | . 7 . 9 6 . 4 5 1 . . 5 6 . . 1 . 5 . 4 1 6 . . 1 2 2 6 Power 10 | . 1 . 3 . . 1 1 . . . . 2 . . . . . . 2 . . . . . . . . Propulsion 11 | . . . . 4 . . . . . . . . . . . . 2 . . . 2 . . . 1 1 1 Utility 22 | . 2 . 3 . . . 1 1 . . 1 2 . . 1 . 2 . 1 . 3 . . 1 . . 4 Weapon 22 | . 4 . 3 2 . 3 3 . . . . . . . . . 1 . 1 1 1 . . . 1 1 1 Tool/Special 6 | . . . . . . . . . . . 4 2 . . . . . . . . . . . . . . . Average Slot Usage (%) 95 | . 99 100 97 99 100 99 99 99 99 83 90 89 100 98 99 100 99 100 97 99 100 100 93 94 91 82 41 Engine 4 | . 14 14 11 9 9 8 7 6 6 5 6 1 . . . . . . . . . . . . . . . Reactor 3 | . . . . . . . . . . . . 4 6 10 11 11 11 11 10 7 8 10 8 4 7 8 4 Treads 15 | . 27 28 30 36 36 35 29 26 25 8 16 8 . . . . . . . . . . . . . . . Leg 6 | . . . . . . . . . . . . . . . . . 11 27 29 30 30 30 27 27 25 17 12 Hover 3 | . . . . . . . . . . . . 12 25 26 26 27 15 . . . . . . . . . . Device 9 | . 14 14 2 1 5 . 3 6 13 6 5 10 13 13 16 16 13 11 14 15 14 15 12 17 16 15 6 Storage 6 | . 14 14 11 9 9 9 7 6 6 6 6 6 6 5 5 5 5 5 5 5 5 5 5 4 4 4 3 Processor 17 | . . . 3 9 9 9 15 19 22 31 31 23 18 16 16 16 18 22 20 20 20 20 19 18 16 16 9 Protection 2 | . . . 4 7 3 8 3 5 . . . 1 3 2 . . . . . . . . 2 4 4 3 . Energy Gun 2 | . 2 . . . . . . . . . . 9 25 14 6 5 6 11 4 . . . . . . . . Ballistic Gun 15 | . 4 26 32 26 26 27 22 14 . 8 24 8 . 7 11 11 11 11 15 19 19 20 14 11 13 14 1 Ballistic Cannon 4 | . 19 1 . . . . 7 12 17 11 . . . . . . . . . . . . . 5 2 . 2 Peak Build Rating 205 | 7 11 17 17 40 40 40 54 64 72 72 76 112 112 122 118 111 132 129 146 143 149 150 164 170 189 205 173 Average Rating 80 | 5 9 9 14 30 37 38 47 59 68 63 70 91 109 117 110 110 118 125 137 140 146 149 142 160 185 185 104 On Entrance 90 | . 7 10 9 17 40 36 38 47 58 72 69 72 112 108 118 111 111 129 125 142 140 149 150 132 170 189 165 Naked Turns 35 | . . . . . . . . . . . . . . . . . . . . . . . . . . . 35 Heaviest Build 197 | 15 34 30 62 100 101 105 126 116 126 113 111 115 110 122 122 121 133 122 136 154 157 157 165 165 197 179 141 Greatest Support 210 | 40 40 40 60 112 112 100 106 88 88 50 72 72 58 72 72 65 131 131 159 159 159 159 175 171 210 210 180 Greatest Overweight (x) 6 | 1 1 . 1 1 1 1 1 1 1 5 2 6 1 2 2 1 2 . 1 . . . 2 . 1 1 3 Average Overweight (x) . | . . . . . . . . 1 1 3 1 1 1 1 1 1 . . . . . . . . . . . Largest Inventory Capacity 25 | 8 25 15 20 25 25 25 25 25 25 25 25 25 25 25 25 25 25 25 25 25 25 25 25 25 25 25 25 Average Capacity 23 | 7 14 15 18 22 25 25 25 25 25 25 25 25 25 25 25 25 25 25 25 25 25 25 25 25 25 25 20 Most Carried 25 | 2 15 15 20 25 25 25 25 25 25 25 25 25 25 25 25 25 25 25 25 25 25 25 25 25 25 25 22 Average Carried 22 | 1 12 14 18 22 22 24 23 23 22 23 24 24 23 22 24 25 24 24 24 24 24 25 23 19 24 24 16 Final Capacity 25 | 8 15 15 20 25 25 25 25 25 25 25 25 25 25 25 25 25 25 25 25 25 25 25 25 25 25 25 5 Final Carried 25 | 2 15 15 20 25 22 23 25 23 25 25 25 25 23 25 25 25 25 25 25 25 25 25 20 25 25 22 . Class Distribution -------------------- 48% | Gunner 34% | Scavenger-Gunner 6% | Mutant 3% | Scavenger-Tank 3% | Commander-Gunner Dominant Class ---------------- Mutant | -10/Materials Mutant | -10/Mines Scavenger-Tank | -9/Materials Scavenger-Gunner | -8/Materials Gunner | -8/Garrison Gunner | -8/Materials Gunner | -7/Factory Gunner | -6/Factory Gunner | -6/Lower Caves Gunner | -6/Lower Caves Gunner | -6/Zion Scavenger-Gunner | -6/Deep Caves Scavenger-Gunner | -5/Proximity Caves Scavenger-Gunner | -5/Factory Scavenger-Gunner | -5/Upper Caves Scavenger-Gunner | -5/Upper Caves Scavenger-Gunner | -5/Warlord Skirmisher | -4/Proximity Caves Scavenger-Gunner | -4/Factory Commander-Gunner | -4/Extension Scavenger-Gunner | -4/Cetus Scavenger-Gunner | -4/Archives Scavenger-Gunner | -4/Hub_04(d) Scavenger-Gunner | -3/Research Scavenger-Gunner | -2/Research Scavenger-Gunner | -2/Quarantine Mutant | -2/Section 7 Resources | -11 -10 -10 -9 -8 -8 -8 -7 -6 -6 -6 -6 -6 -5 -5 -5 -5 -5 -4 -4 -4 -4 -4 -4 -3 -2 -2 -2 ----------- Run | Yrd Mat Min Mat Mat Gar Mat Fac Fac Low Low Zio Dee Pro Fac Upp Upp War Pro Fac Ext Cet Arc Hub Res Res Qua Sec Matter Collected 14678 | 285 592 50 1252 1036 477 1181 1120 565 484 386 30 624 64 84 294 52 389 20 311 857 358 198 1793 773 613 790 . Remotely 2304 | . 18 . . 150 . . 122 370 243 . . . . . . . . . . . . . 819 . . 582 . Salvage Created 17312 | 122 541 50 1669 1553 516 1462 1436 346 437 264 . 242 90 84 231 427 277 . 443 938 407 385 2333 1093 635 1331 . Parts 810 | 4 31 5 109 97 33 80 77 12 3 13 . 10 4 2 12 6 10 . 18 45 21 15 117 34 18 34 . Haulers Intercepted 26 | . 2 . 5 4 . 4 2 . . . . . . . . . . . 1 . . . 3 4 1 . . Recyclers Shooed 12 | 1 2 1 2 . . 2 1 1 . . . . . . . . . . . 1 . . . 1 . . . Parts Field Recycled . | . . . . . . . . . . . . . . . . . . . . . . . . . . . . Retrieved Matter . | . . . . . . . . . . . . . . . . . . . . . . . . . . . . Parts Self-Destructed 30 | . . . . . . . . . 1 9 . . 4 . 16 . . . . . . . . . . . . Prevented 1 | . . . . . . . . . . . . . . . 1 . . . . . . . . . . . . Kills | -11 -10 -10 -9 -8 -8 -8 -7 -6 -6 -6 -6 -6 -5 -5 -5 -5 -5 -4 -4 -4 -4 -4 -4 -3 -2 -2 -2 ------- Run | Yrd Mat Min Mat Mat Gar Mat Fac Fac Low Low Zio Dee Pro Fac Upp Upp War Pro Fac Ext Cet Arc Hub Res Res Qua Sec Combat Hostiles Destroyed 248 | . 13 3 25 24 14 22 24 8 2 8 . 7 1 1 3 . 6 . 2 11 5 4 28 7 7 23 . Melee 2 | . . . . . . . . . . . . . . . . . . . . . . . 2 . . . . Guns 169 | . 2 3 21 24 14 22 14 4 . . . 2 1 1 3 . 6 . 2 11 5 4 15 2 4 9 . Cannons 38 | . 9 . . . . . 7 4 2 3 . . . . . . . . . . . . 7 5 . 1 . AOE 39 | . 2 . 4 . . . 3 . . 5 . 5 . . . . . . . . . . 4 . 3 13 . Classes Destroyed 24 | 2 7 . 2 1 2 2 . . . 1 . 1 1 . . . 3 . . . . . 1 . . 1 . Worker 14 | . 1 . 1 2 . 2 1 . . . . . . . . . . . . . . . 3 2 . 2 . Builder 6 | . 1 . 1 . . . 1 . . . . . . . . . . . . 1 . . 1 . . 1 . Tunneler 8 | 1 . . . 1 . . . . . . . . . . . . . . . . . . 5 1 . . . Hauler 26 | . 2 . 5 4 . 4 2 . . . . . . . . . . . 1 . . . 3 4 1 . . Recycler 26 | 1 1 . 5 4 . 4 4 . . . . . . . . . . . 1 . . . 2 2 1 1 . Minesweeper 1 | . . . . . . . . . . . . . 1 . . . . . . . . . . . . . . Mechanic 1 | . . . . . . 1 . . . . . . . . . . . . . . . . . . . . . Operator 7 | . 1 . 1 . . 2 . 1 . . . . . . . . . . 1 . . . . . 1 . . Watcher 17 | . 3 . 4 4 . . 1 . . . . . . . . . . . . . 2 . . 1 2 . . Swarmer 37 | . 3 3 7 9 3 4 5 . . 3 . . . . . . . . . . . . . . . . . Cutter 2 | . . . . . 2 . . . . . . . . . . . . . . . . . . . . . . Grunt 79 | . 10 . 13 6 2 10 6 6 . 2 . . . . . . 1 . . 2 . . 5 . 1 15 . Brawler 7 | . . . . 1 . 1 . 1 . . . . . . 1 . 1 . . . . . 2 . . . . Duelist 9 | . . . 1 . 3 . . . . 1 . . . . 1 . 1 . . . . . . . 2 . . Protector 3 | . . . . . . . . . . . . . . . . . 1 . . . . . 2 . . . . Researcher 1 | . . . . . . . . . . . . . . . . . . . . . . . . . . 1 . Sentry 43 | . . . 4 8 2 6 7 1 . . . . . 1 . . . . 2 5 . 4 2 1 . . . Hunter 20 | . . . . . . 1 2 . 2 2 . . 1 . . . . . . . . . 4 2 2 4 . Programmer 22 | . . . . . 2 . 4 . . . . . . . 1 . . . . 2 . . 5 3 1 4 . Heavy 2 | . . . . . . . . . . . . . . . . . . . . . . . 2 . . . . Behemoth 2 | . . . . . . . . . . . . . . . . . 1 . . 1 . . . . . . . Cetus Guard 5 | . . . . . . . . . . . . . . . . . . . . . 5 . . . . . . Lightning 6 | . . . . . . . . . . . . . . . . . . . . . . . 6 . . . . Striker 3 | . . . . . . . . . . . . . . . . . 1 . . . . . . 1 1 . . Z-Technician 3 | . . . . . . . . . . . . 3 . . . . . . . . . . . . . . . Z-Light 7 | . . . . . . . . . . . . 7 . . . . . . . . . . . . . . . Decomposer 2 | . . . . . . . . . 1 . . . . . . 1 . . . . . . . . . . . Packrat 1 | . . . . . . . . . . . . . . . . 1 . . . . . . . . . . . Samaritan 5 | . . . . . . . . . . 2 . . . . 1 2 . . . . . . . . . . . Thug 1 | . . . . . . . . . . . . . . . . . . . . 1 . . . . . . . Savage 1 | . . . . . . . . . . . . . . . . . . . . 1 . . . . . . . Best Kill Streak 15 | 2 5 3 6 6 6 5 7 4 2 5 . 6 1 1 2 1 3 . 3 2 4 2 4 5 4 15 . Combat Bots Only 12 | . 4 3 6 4 6 5 4 4 2 5 . 6 1 1 2 . 3 . 2 2 3 2 4 2 4 12 . Max Kills in Single Turn 4 | 1 2 1 3 2 2 2 3 2 1 2 . 3 1 1 1 1 1 . 1 1 1 1 3 2 2 4 . Gunslinging 1 | . . . 1 . . 1 . . . . . . . . . . . . . . . . . . . . . Exploded 3 | . 1 . 2 . . . 2 . . 2 . 2 . . . . . . . . . . 2 . 2 3 . Melee 1 | . . . . . . . . . . . . . . . . . . . . . . . 1 . . . . Uniques/NPCs Destroyed 1 | . . . . . . . . . . . . 1 . . . . . . . . . . . . . . . Z-Imprinter (-6/Deep Caves) Combat | -11 -10 -10 -9 -8 -8 -8 -7 -6 -6 -6 -6 -6 -5 -5 -5 -5 -5 -4 -4 -4 -4 -4 -4 -3 -2 -2 -2 -------- Run | Yrd Mat Min Mat Mat Gar Mat Fac Fac Low Low Zio Dee Pro Fac Upp Upp War Pro Fac Ext Cet Arc Hub Res Res Qua Sec Hostile Shots Fired 1791 | . 88 22 87 121 46 102 241 71 69 41 . 33 9 11 11 . 14 6 12 77 11 15 336 21 18 217 112 Missed 566 | . 25 4 30 32 9 26 103 26 20 7 . 8 3 . 6 . 3 3 2 27 7 6 91 15 7 78 28 Intercepted 4 | . . . . . . . . . . . . . . . . . . . . . . . . 4 . . . Deflected 2 | . . . . . . . . . . . . . . . . . . . . . . . . . . 2 . Hits 1225 | . 63 18 57 89 37 76 138 45 49 34 . 25 6 11 5 . 11 3 10 50 4 9 245 6 11 139 84 Melee 19 | . . . 4 1 8 . . . . 1 . . . . . . . . . . . . 5 . . . . Projectile 1206 | . 63 18 53 88 29 76 138 45 49 33 . 25 6 11 5 . 11 3 10 50 4 9 240 6 11 139 84 AOE 5 | . . . . . 2 . . . . . . . . . . . . . . . . . 1 2 . . . Critical Strikes 71 | . . . 2 3 7 5 1 1 1 2 . . . 2 . . 2 . . 1 2 . 22 . 1 15 4 Part Disruptions 5 | . . . . . 1 . . . . . . . . . . . . . . . . . 2 . . 2 . Actively Blocked 1 | . . . . . . . . . . . . . . . . . . . . . . . . . . 1 . Damage Taken 21532 | . 766 136 678 1145 498 1075 1198 584 770 607 . 777 104 309 97 . 272 . 178 620 74 116 5659 258 170 2294 3147 Core 3004 | . 108 19 30 132 42 139 120 6 109 49 . 175 19 . . . 79 . . . 11 . 481 43 8 157 1277 Absorbed by Shields 2610 | . . . 14 . 116 . 138 . 69 . . . . . . . . . 46 575 79 118 308 . 177 970 . Redirected to Shielding 93 | . . . . . . . . . . . . . . 93 . . . . . . . . . . . . . Ignored by Resistances 1538 | . . . . . . . . . . . . . . . . . . . . . . . 1058 . . 480 . Regen/Repaired (Parts) 263 | . . . . 102 . . 11 . . . . . . 130 . . 20 . . . . . . . . . . Core Remaining (%) 74 | 100 . 49 92 . . 43 82 . . . . . 57 . . . . 92 . . . . 57 96 . . . Volleys Fired 801 | 5 76 7 78 75 37 83 54 18 6 17 . 17 6 7 13 2 26 4 17 39 12 11 104 24 21 38 4 Largest 4 | 2 2 2 3 3 3 3 4 4 4 3 . 4 4 4 4 3 4 4 4 4 4 4 4 4 4 4 1 Hottest 300 | 60 66 40 66 83 71 73 176 121 157 117 . 266 266 186 186 126 209 209 209 140 140 140 174 177 177 300 58 Shots Fired 2386 | 10 149 14 230 225 106 250 205 72 17 33 . 35 24 28 45 6 89 16 40 153 48 44 263 93 75 112 4 Gun 2004 | 10 48 14 227 222 104 250 145 40 . . . 30 24 28 45 6 88 16 40 152 48 44 210 49 64 100 . Cannon 344 | . 98 . . 3 1 . 57 32 17 27 . 1 . . . . 1 . . 1 . . 49 44 8 1 4 Launcher 38 | . 3 . 3 . 1 . 3 . . 6 . 4 . . . . . . . . . . 4 . 3 11 . Special . | . . . . . . . . . . . . . . . . . . . . . . . . . . . . Kinetic 2145 | 5 127 14 227 225 105 250 202 72 17 27 . 21 . 14 26 4 42 8 29 152 48 44 217 93 72 100 4 Thermal 70 | . . . . . . . . . . . . 9 18 7 5 . 25 4 1 . . . . . . 1 . Explosive 38 | . 3 . 3 . 1 . 3 . . 6 . 4 . . . . . . . . . . 4 . 3 11 . Electromagnetic 51 | 5 19 . . . . . . . . . . . . . 1 . . . . . . . 26 . . . . Entropic 18 | . . . . . . . . . . . . . . . . . 1 . . 1 . . 16 . . . . Phasic 64 | . . . . . . . . . . . . 1 6 7 13 2 21 4 10 . . . . . . . . Robot Hit Streak 26 | 2 8 6 10 25 19 19 15 26 5 5 . 6 4 6 7 . 16 . 14 14 14 26 15 22 8 9 6 Robot Miss Streak 24 | 3 5 2 4 3 2 3 4 3 1 3 . 24 1 2 1 . 3 . 2 9 2 2 7 4 3 3 . Penetration Max 2 | . . . . . . . . 1 . . . . . . . . 1 . 1 2 . 1 2 1 1 1 . Secondary Targets 34 | . . 1 3 4 5 4 . . . . . . . . 1 . 2 . . 3 2 . 6 . . 3 . Max Gunslinging Chain 1 | . . 1 1 1 1 1 . . . . . . . . 1 . 1 . . 1 1 . 1 . . 1 . Shots Hit Robots 1500 | 5 73 8 139 158 60 171 128 47 26 19 . 16 9 12 20 9 59 . 18 92 36 34 172 69 44 69 7 Core Hits 760 | 3 26 3 66 63 24 57 64 21 7 15 . 30 4 3 9 7 18 . 11 50 23 13 110 31 35 64 3 Critical Kills 21 | . . . 1 . . 1 . . . . . . . . . . . . . 3 . 2 5 6 1 2 . Critical Parts Destroyed 29 | . . . 3 . . 1 2 . 2 . . 1 . . . . . . . 2 . 1 7 8 2 . . Critical Strikes 71 | . 4 . 4 . . 2 4 2 4 1 . 1 1 . . . 2 . . 5 1 4 16 15 3 2 . Destroy 50 | . . . 4 . . 2 2 . . . . 1 . . . . . . . 5 1 4 12 14 3 2 . Blast 11 | . 4 . . . . . 2 2 2 1 . . . . . . . . . . . . . . . . . Smash 3 | . . . . . . . . . 2 . . . . . . . . . . . . . . 1 . . . Impale 1 | . . . . . . . . . . . . . . . . . . . . . . . 1 . . . . Sunder 3 | . . . . . . . . . . . . . . . . . . . . . . . 3 . . . . Intensify 3 | . . . . . . . . . . . . . 1 . . . 2 . . . . . . . . . . Melee Attacks 78 | . . . . . . . 3 . 23 1 2 . . . 4 9 5 . . . . . 14 6 . 7 4 Impact 41 | . . . . . . . 3 . 23 1 2 . . . . . . . . . . . . 6 . 6 . Slashing . | . . . . . . . . . . . . . . . . . . . . . . . . . . . . Piercing 37 | . . . . . . . . . . . . . . . 4 9 5 . . . . . 14 . . 1 4 Sneak Attacks 12 | . . . . . . . . . 1 1 . . . . 1 4 . . . . . . 1 4 . . . Combat Hostiles . | . . . . . . . . . . . . . . . . . . . . . . . . . . . . Follow-up Attacks . | . . . . . . . . . . . . . . . . . . . . . . . . . . . . Damage Inflicted 44063 | 95 1550 112 2281 2658 1074 2992 2804 1175 1120 985 . 2505 286 317 591 595 1691 . 469 2224 928 938 7066 1874 2261 4970 502 Guns 25960 | 72 363 102 1996 2591 1024 2828 1503 485 . . . 474 286 317 515 . 1691 . 469 2206 928 938 3596 851 1152 1573 . Cannons 5637 | . 1111 . . 51 . . 1046 660 229 444 . . . . . . . . . . . . 1120 532 56 200 188 Explosions 9426 | 23 65 . 268 . 50 146 249 . . 477 . 2031 . . . . . . . . . . 1935 . 985 3197 . Melee 2481 | . . . . . . . . . 891 64 . . . . 76 595 . . . . . . 327 427 . . 101 Ramming 559 | . 11 10 17 16 . 18 6 30 . . . . . . . . . . . 18 . . 88 64 68 . 213 Kinetic 28129 | 34 1254 102 1996 2642 1024 2828 2549 1145 229 444 . 198 . 194 226 . 889 . 436 2206 928 938 3515 1383 1208 1573 188 Thermal 2621 | 23 . . . . . 146 . . . . . 1586 154 57 115 . 340 . . . . . . . . 200 . Explosive 7577 | . 65 . 268 . 50 . 249 . . 477 . 721 . . . . . . . . . . 1565 . 985 3197 . Electromagnetic 1076 | 38 220 . . . . . . . . . . . . . 9 . . . . . . . 809 . . . . Impact 1382 | . . . . . . . . . 891 64 . . . . . . . . . . . . . 427 . . . Slashing . | . . . . . . . . . . . . . . . . . . . . . . . . . . . . Piercing 1099 | . . . . . . . . . . . . . . . 76 595 . . . . . . 327 . . . 101 Entropic 762 | . . . . . . . . . . . . . . . . . . . . . . . 762 . . . . Phasic 858 | . . . . . . . . . . . . . 132 66 165 . 462 . 33 . . . . . . . . Highest Corruption 30 | . . . 6 . 5 5 2 . . . . . . . . . . . . . . . 23 1 . 8 30 Average Corruption 5 | . . . 4 . 4 5 1 . . . . . . . . . . . . . . . 12 1 . 4 22 Corruption Purged . | . . . . . . . . . . . . . . . . . . . . . . . . . . . . Corruption Blocked . | . . . . . . . . . . . . . . . . . . . . . . . . . . . . Effects 172 | . . . 11 . 13 59 15 . . . . . . . . . . . . . . . 43 8 . 15 8 Message Errors 32 | . . . 2 . 3 10 4 . . . . . . . . . . . . . . . 4 1 . 5 3 Matter Fused 49 | . . . 1 . 6 22 4 . . . . . . . . . . . . . . . 9 2 . 5 . Heat Flow Errors 18 | . . . 1 . . 5 1 . . . . . . . . . . . . . . . 7 3 . . 1 Energy Discharges 18 | . . . 3 . 2 3 2 . . . . . . . . . . . . . . . 4 1 . 2 1 Parts Rejected 2 | . . . . . . 1 . . . . . . . . . . . . . . . . . . . 1 . Data Loss (minor) 15 | . . . . . . 5 2 . . . . . . . . . . . . . . . 5 . . 2 1 Data Loss (major) 5 | . . . 1 . 1 3 . . . . . . . . . . . . . . . . . . . . . Misfires 9 | . . . 2 . . 5 2 . . . . . . . . . . . . . . . . . . . . Alerts 4 | . . . 1 . . 1 . . . . . . . . . . . . . . . . 1 . . . 1 Misdirections 3 | . . . . . . . . . . . . . . . . . . . . . . . 2 . . . 1 Weapon Failures 17 | . . . . . 1 4 . . . . . . . . . . . . . . . . 11 1 . . . Overload Shots . | . . . . . . . . . . . . . . . . . . . . . . . . . . . . Overflow Damage 1346 | . 52 . 6 . . 66 48 2 578 110 . . . . 58 41 . . . . . . 89 195 49 52 . Projectiles 102 | . 52 . . . . . 48 2 . . . . . . . . . . . . . . . . . . . Explosions 246 | . . . 6 . . 66 . . . 47 . . . . . . . . . . . . 64 . 11 52 . Melee 998 | . . . . . . . . . 578 63 . . . . 58 41 . . . . . . 25 195 38 . . Knockbacks 48 | . 18 . . . . . 3 6 4 4 . . . . . . . . . 1 . . 5 6 1 . . Impact 6 | . . . . . . . . . 1 . . . . . . . . . . 1 . . . 3 1 . . Kinetic 37 | . 15 . . . . . 3 5 3 4 . . . . . . . . . . . . 5 2 . . . Secondary 5 | . 3 . . . . . . 1 . . . . . . . . . . . . . . . 1 . . . Self-Inflicted Damage 269 | . . . . . . . . . . . . . . . . . . . . . . . 150 . . . 119 Shots 2 | . . . . . . . . . . . . . . . . . . . . . . . 2 . . . . Rammed 25 | 1 3 1 4 3 . 3 2 1 . . . . . . . . . . . . . . . . . . 7 Targets Rammed 39 | 1 3 1 4 3 . 3 2 2 . . . . . . . . . . . 1 . . 3 2 1 . 13 Kicked 13 | . . . . . . . . . . . . . . . . . . . . 1 . . 3 2 1 . 6 Crushed 1 | . . . . . . . . 1 . . . . . . . . . . . . . . . . . . . Highest Temperature 433 | . 158 . 203 137 69 180 418 177 96 246 . 378 123 433 48 . 258 232 174 146 . . 374 143 21 319 394 Average Temperature 60 | . 40 . 20 30 23 50 65 60 45 101 . 111 44 163 18 . 112 96 83 51 . . 87 39 14 131 191 Received Heat Transfer 6181 | . 348 . 182 396 66 558 323 264 . 144 . 234 . 36 36 . 9 . 30 52 . 8 557 18 . 747 2173 Effects 13 | . . . . . . . 1 . . . . 1 . 3 . . . . . . . . 7 . . . 1 Shutdowns 2 | . . . . . . . . . . . . . . . . . . . . . . . 1 . . . 1 Interference 6 | . . . . . . . . . . . . . . . . . . . . . . . 6 . . . . Short Circuit 1 | . . . . . . . 1 . . . . . . . . . . . . . . . . . . . . Damage (minor) 1 | . . . . . . . . . . . . 1 . . . . . . . . . . . . . . . Damage (major) 3 | . . . . . . . . . . . . . . 3 . . . . . . . . . . . . . Siege Activations . | . . . . . . . . . . . . . . . . . . . . . . . . . . . . Martial Activations . | . . . . . . . . . . . . . . . . . . . . . . . . . . . . Shielding Activations 2 | . . . . . . . . . . . . . . . . . . . . . . . 1 . . 1 . Total Turns 38 | . . . . . . . . . . . . . . . . . . . . . . . 27 . . 11 . Longest Duration 27 | . . . . . . . . . . . . . . . . . . . . . . . 27 . . 11 . Robots Disrupted . | . . . . . . . . . . . . . . . . . . . . . . . . . . . . Combat Hostiles . | . . . . . . . . . . . . . . . . . . . . . . . . . . . . Robots Corrupted 9 | . . . . . . . . . 5 1 . . . . . . . . . . . . . 2 1 . . Combat Hostiles . | . . . . . . . . . . . . . . . . . . . . . . . . . . . . Parts Fried 22 | . 1 . . . . . . . 5 1 . . . . . . 1 . . . . . 4 7 3 . . Impact Corruptions 47 | . . . . . . . . . 35 5 . . . . . . . . . . . . 1 4 2 . . Robots Melted . | . . . . . . . . . . . . . . . . . . . . . . . . . . . . Combat Hostiles . | . . . . . . . . . . . . . . . . . . . . . . . . . . . . Parts Melted 5 | . . . . . . . . . . . . 1 2 . 1 . . . . . . . . . . 1 . Heat Transferred 1480 | 50 . . . . . 100 . . . . . 425 185 74 148 . 498 . . . . . . . . . . Parts Sabotaged . | . . . . . . . . . . . . . . . . . . . . . . . . . . . . Parts Stolen . | . . . . . . . . . . . . . . . . . . . . . . . . . . . . Parts Stripped . | . . . . . . . . . . . . . . . . . . . . . . . . . . . . Power Chain Reactions 2 | 1 . . . . . . . . . . . . . . . . . . . . . . 1 . . . . Alert | -11 -10 -10 -9 -8 -8 -8 -7 -6 -6 -6 -6 -6 -5 -5 -5 -5 -5 -4 -4 -4 -4 -4 -4 -3 -2 -2 -2 ------- Run | Yrd Mat Min Mat Mat Gar Mat Fac Fac Low Low Zio Dee Pro Fac Upp Upp War Pro Fac Ext Cet Arc Hub Res Res Qua Sec Maximum Alert Level 3 | . . . 1 1 3 1 2 1 . . . . . . . . . . . 2 1 . 2 1 . 2 1 Low Security (%) 69 | 100 100 100 92 91 10 19 72 95 . . . . . 100 . . . . 100 85 . 100 15 70 100 28 81 Level 1 21 | . . . 7 8 25 80 21 4 . . . . . . . . . . . 7 100 . 49 29 . 5 18 Level 2 8 | . . . . . 53 . 5 . . . . . . . . . . . . 6 . . 34 . . 66 . Level 3 . | . . . . . 10 . . . . . . . . . . . . . . . . . . . . . . Level 4 . | . . . . . . . . . . . . . . . . . . . . . . . . . . . . Level 5 . | . . . . . . . . . . . . . . . . . . . . . . . . . . . . High Security . | . . . . . . . . . . . . . . . . . . . . . . . . . . . . Max Security . | . . . . . . . . . . . . . . . . . . . . . . . . . . . . Peak Influence 767 | 5 151 60 227 278 767 395 440 212 . . . . . 34 . . . . 63 496 368 181 655 321 128 550 234 Initial 373 | . . . 3 21 170 373 97 212 . . . . . . . . . . . . 272 126 52 321 33 20 234 Average 152 | . 57 36 70 93 471 260 114 128 . . . . . 3 . . . . 11 98 331 150 342 165 44 337 119 Influence Increases 9468 | 10 452 70 787 714 617 786 824 258 50 190 . . 35 94 70 20 105 . 115 1246 245 105 1411 228 236 800 . Destroy 0b10 Robot/C 5160 | . 260 60 500 480 280 440 480 160 40 160 . . 20 20 60 . 100 . 40 540 160 80 520 140 140 480 . Destroy 0b10 Robot/NC 575 | 10 45 . 85 75 . 65 45 5 . . . . 5 . . 20 5 . 15 15 10 . 80 50 25 20 . Destroy Leader 1058 | . 60 10 108 146 10 128 166 30 10 30 . . 10 10 10 . . . 22 60 . . 124 38 26 60 . Allied During Kill 521 | . . . . . . . . . . . . . . . . . . . . 470 51 . . . . . . Successful Hack 196 | . 33 . 35 8 . 13 9 . . . . . . 31 . . . . 14 37 . . 16 . . . . Disable Machine 690 | . 15 . 15 . 15 90 45 30 . . . . . . . . . . . 60 . 15 270 . 30 105 . Anti-Garrison Action 300 | . . . . . 300 . . . . . . . . . . . . . . . . . . . . . . Destroy Structure 743 | . 24 . 14 5 12 35 34 33 . . . . . 18 . . . . 24 64 24 10 356 . . 90 . Partial Spotted 15 | . . . . . . . 15 . . . . . . . . . . . . . . . . . . . . Lose Combat Pursuer 210 | . 15 . 30 . . 15 30 . . . . . . 15 . . . . . . . . 45 . 15 45 . Influence Decreases 9414 | 10 452 60 745 503 113 1338 604 639 104 190 . . 35 94 70 20 57 48 115 758 416 271 949 782 258 419 364 Entered New Map 1960 | . . . 7 31 93 394 118 223 21 . . . . . . . . 48 . . 216 191 99 292 26 17 184 Time Decay 5697 | 10 432 60 548 472 . 604 446 386 83 160 . . 35 88 60 20 57 . 115 347 140 60 440 490 232 332 80 Lost Part 676 | . 20 . 40 . 20 40 40 30 . 30 . . . 6 10 . . . . 10 . . 260 . . 70 100 Lost Ally 360 | . . . . . . . . . . . . . . . . . . . . 280 60 20 . . . . . Purge Threat 721 | . . . 150 . . 300 . . . . . . . . . . . . . 121 . . 150 . . . . Squads Dispatched 45 | . 3 . 2 1 . 2 9 3 . . . . . . . . . . 1 1 . . 8 4 3 7 1 Investigation 2 | . 1 . . . . . . . . . . . . . . . . . . . . . . 1 . . . Extermination 11 | . . . . . . . 4 1 . . . . . . . . . . 1 . . . 2 . . 3 . Reinforcement 27 | . 2 . 2 1 . 2 2 2 . . . . . . . . . . . 1 . . 4 3 3 4 1 Assault 3 | . . . . . . . 1 . . . . . . . . . . . . . . . 2 . . . . Garrison 2 | . . . . . . . 2 . . . . . . . . . . . . . . . . . . . . Intercept . | . . . . . . . . . . . . . . . . . . . . . . . . . . . . Searches Triggered . | . . . . . . . . . . . . . . . . . . . . . . . . . . . . Construction Impeded 1 | . . . . . . . . . . . . . . . . . . . . . . . 1 . . . . Haulers Reinforced 1 | . . . . . . . . . . . . . . . . . . . . . . . . 1 . . . Active Scanning Responses . | . . . . . . . . . . . . . . . . . . . . . . . . . . . . Cargo Convoy Interrupts 1 | . . . . . . . . 1 . . . . . . . . . . . . . . . . . . . Stealth | -11 -10 -10 -9 -8 -8 -8 -7 -6 -6 -6 -6 -6 -5 -5 -5 -5 -5 -4 -4 -4 -4 -4 -4 -3 -2 -2 -2 --------- Run | Yrd Mat Min Mat Mat Gar Mat Fac Fac Low Low Zio Dee Pro Fac Upp Upp War Pro Fac Ext Cet Arc Hub Res Res Qua Sec Distress Signals 17 | . . . 1 1 . 1 2 . . . . . . . . . . . . 2 1 . . 2 7 . . Communications Jammed 101 | . . . . . . . . . . . . . . . . . . . . . . . 34 7 10 50 . Distress Signals 99 | . . . . . . . . . . . . . . . . . . . . . . . 32 7 10 50 . Times Spotted 405 | . 24 3 33 35 14 29 28 10 2 6 . 11 1 1 6 . 36 1 2 26 9 7 48 15 20 30 8 Peak Tracking Total 17 | . 3 3 4 5 6 4 4 4 2 3 . 5 1 1 5 . 17 1 2 6 5 1 5 2 5 8 7 Tactical Retreats 12 | . 1 . 1 . . 1 1 . . . . . . 1 . . . . . . . . 3 . 1 3 . Traps | -11 -10 -10 -9 -8 -8 -8 -7 -6 -6 -6 -6 -6 -5 -5 -5 -5 -5 -4 -4 -4 -4 -4 -4 -3 -2 -2 -2 ------- Run | Yrd Mat Min Mat Mat Gar Mat Fac Fac Low Low Zio Dee Pro Fac Upp Upp War Pro Fac Ext Cet Arc Hub Res Res Qua Sec Traps Triggered 15 | . 3 . 1 1 1 . 1 . . . . . . . . . . . 2 1 . . 3 2 . . . Indirectly 1 | . . . . . . . . . . . . . . . . . . . . . . . 1 . . . . Trap Hack Attempts . | . . . . . . . . . . . . . . . . . . . . . . . . . . . . Triggered . | . . . . . . . . . . . . . . . . . . . . . . . . . . . . Disarmed . | . . . . . . . . . . . . . . . . . . . . . . . . . . . . Reprogrammed 1 | . . . . . . . . . . . . . . . . . . . . 1 . . . . . . . Reused . | . . . . . . . . . . . . . . . . . . . . . . . . . . . . Traps Extracted . | . . . . . . . . . . . . . . . . . . . . . . . . . . . . Installed . | . . . . . . . . . . . . . . . . . . . . . . . . . . . . Triggered . | . . . . . . . . . . . . . . . . . . . . . . . . . . . . Machines | -11 -10 -10 -9 -8 -8 -8 -7 -6 -6 -6 -6 -6 -5 -5 -5 -5 -5 -4 -4 -4 -4 -4 -4 -3 -2 -2 -2 ---------- Run | Yrd Mat Min Mat Mat Gar Mat Fac Fac Low Low Zio Dee Pro Fac Upp Upp War Pro Fac Ext Cet Arc Hub Res Res Qua Sec Machines Disabled 59 | . 2 . 1 . 9 6 3 2 . . . 2 . . . . 1 . . 5 . 1 18 . 2 7 . Max in Single Turn 8 | . 1 . 1 . 3 5 1 2 . . . 1 . . . . 1 . . 1 . . 8 . 1 3 . Garrison Access 4 | . . . . . . . . . . . . . . . . . . . 1 . . . 1 . 2 . . Garrison Relay 6 | . . . . . 6 . . . . . . . . . . . . . . . . . . . . . . Network Hub 1 | . . . . . . . . . . . . . . . . . . . . . . . 1 . . . . Machines Repaired . | . . . . . . . . . . . . . . . . . . . . . . . . . . . . Machines Dismantled . | . . . . . . . . . . . . . . . . . . . . . . . . . . . . Machines Sabotaged . | . . . . . . . . . . . . . . . . . . . . . . . . . . . . Overloaded Fab Kills . | . . . . . . . . . . . . . . . . . . . . . . . . . . . . Hacking | -11 -10 -10 -9 -8 -8 -8 -7 -6 -6 -6 -6 -6 -5 -5 -5 -5 -5 -4 -4 -4 -4 -4 -4 -3 -2 -2 -2 --------- Run | Yrd Mat Min Mat Mat Gar Mat Fac Fac Low Low Zio Dee Pro Fac Upp Upp War Pro Fac Ext Cet Arc Hub Res Res Qua Sec Machines Accessed 72 | . 6 . 7 8 3 10 5 . 1 1 . . . 4 1 . 8 1 4 9 . . 2 . 1 1 . Terminals 49 | . 5 . 7 5 3 9 3 . . . . . . 3 . . . 1 2 9 . . 1 . . 1 . Fabricators . | . . . . . . . . . . . . . . . . . . . . . . . . . . . . Repair Stations 7 | . 1 . . 2 . 1 2 . . . . . . 1 . . . . . . . . . . . . . Recycling Units . | . . . . . . . . . . . . . . . . . . . . . . . . . . . . Scanalyzers . | . . . . . . . . . . . . . . . . . . . . . . . . . . . . Garrison Access 5 | . . . . 1 . . . . . . . . . . . . . . 2 . . . 1 . 1 . . Total Hacks 191 | . 21 . 23 22 5 30 12 . 1 1 . . . 10 1 . 24 1 6 25 . . 7 . 1 1 . Successful 111 | . 12 . 14 14 . 14 7 . 1 1 . . . 5 1 . 24 1 2 11 . . 3 . 1 . . Failed 80 | . 9 . 9 8 5 16 5 . . . . . . 5 . . . . 4 14 . . 4 . . 1 . Catastrophic 15 | . 1 . 1 . 2 2 1 . . . . . . 1 . . . . 3 1 . . 2 . . 1 . Database Lockouts . | . . . . . . . . . . . . . . . . . . . . . . . . . . . . Manual 89 | . 17 . 20 12 . 20 6 . . . 5 . . 2 . . . . 2 4 1 . . . . . . Terminals 140 | . 20 . 23 15 5 27 7 . . . . . . 7 . . . 1 4 25 . . 5 . . 1 . Fabricators . | . . . . . . . . . . . . . . . . . . . . . . . . . . . . Repair Stations 18 | . 1 . . 6 . 3 5 . . . . . . 3 . . . . . . . . . . . . . Recycling Units . | . . . . . . . . . . . . . . . . . . . . . . . . . . . . Scanalyzers . | . . . . . . . . . . . . . . . . . . . . . . . . . . . . Garrison Access 6 | . . . . 1 . . . . . . . . . . . . . . 2 . . . 2 . 1 . . Terminal Hacks 61 | . 3 . 6 2 . 5 2 . 1 1 . . . 2 1 . 24 1 1 10 . . 2 . . . . Record 18 | . . . . . . . . . . . . . . . . . 17 1 . . . . . . . . . Robot Analysis 5 | . . . 3 . . . 1 . . . . . . . . . . . . . . . 1 . . . . Prototype ID Bank 11 | . . . 1 . . 1 . . . . . . . 1 . . 6 . . 2 . . . . . . . Open Door 7 | . . . . . . . . . 1 1 . . . . 1 . 1 . . 3 . . . . . . . Branch Access Points 2 | . . . . . . . . . . . . . . 1 . . . . 1 . . . . . . . . Terminal Index 1 | . 1 . . . . . . . . . . . . . . . . . . . . . . . . . . Alert Level 2 | . . . . 1 . 1 . . . . . . . . . . . . . . . . . . . . . Unreport Threat 6 | . . . 1 . . 2 . . . . . . . . . . . . . 2 . . 1 . . . . Locate Traps 6 | . 1 . 1 . . 1 1 . . . . . . . . . . . . 2 . . . . . . . Reprogram Traps 1 | . . . . . . . . . . . . . . . . . . . . 1 . . . . . . . Hauler Manifests 1 | . 1 . . . . . . . . . . . . . . . . . . . . . . . . . . Zone Layout 1 | . . . . 1 . . . . . . . . . . . . . . . . . . . . . . . Fabricator Hacks . | . . . . . . . . . . . . . . . . . . . . . . . . . . . . Repair Station Hacks 9 | . . . . 3 . 1 3 . . . . . . 2 . . . . . . . . . . . . . Scan Component 6 | . . . . 2 . 1 2 . . . . . . 1 . . . . . . . . . . . . . Repair 3 | . . . . 1 . . 1 . . . . . . 1 . . . . . . . . . . . . . Recycling Unit Hacks . | . . . . . . . . . . . . . . . . . . . . . . . . . . . . Scanalyzer . | . . . . . . . . . . . . . . . . . . . . . . . . . . . . Garrison Access Hacks 4 | . . . . 1 . . . . . . . . . . . . . . 1 . . . 1 . 1 . . Unlock Access 1 | . . . . 1 . . . . . . . . . . . . . . . . . . . . . . . Seal Access 3 | . . . . . . . . . . . . . . . . . . . 1 . . . 1 . 1 . . Unauthorized Hacks 37 | . 9 . 8 8 . 8 2 . . . . . . 1 . . . . . 1 . . . . . . . Terminals 37 | . 9 . 8 8 . 8 2 . . . . . . 1 . . . . . 1 . . . . . . . Botnet 14 | . 3 . 2 3 . 2 2 . . . . . . 1 . . . . . 1 . . . . . . . Operators 2 | . 1 . . . . 1 . . . . . . . . . . . . . . . . . . . . . Skim 21 | . 5 . 6 5 . 5 . . . . . . . . . . . . . . . . . . . . . Fabricators . | . . . . . . . . . . . . . . . . . . . . . . . . . . . . Repair Stations . | . . . . . . . . . . . . . . . . . . . . . . . . . . . . Recycling Units . | . . . . . . . . . . . . . . . . . . . . . . . . . . . . Scanalyzers . | . . . . . . . . . . . . . . . . . . . . . . . . . . . . Garrison Access . | . . . . . . . . . . . . . . . . . . . . . . . . . . . . Data Cores Recovered 4 | . 1 . . . . . . . . . . . . . . . . . 1 1 . . . . 1 . . Used 3 | . 1 . . . . . . . . . . . . . . . . . 1 1 . . . . . . . Hacking Detections 54 | . 6 . 6 8 3 10 4 . . . . . . 4 . . . 1 3 6 . . 2 . . 1 . Full Trace Events 1 | . . . . . . 1 . . . . . . . . . . . . . . . . . . . . . Feedback Events . | . . . . . . . . . . . . . . . . . . . . . . . . . . . . Feedback Blocked . | . . . . . . . . . . . . . . . . . . . . . . . . . . . . Robot Schematics Acquired 4 | . . . . . . . . . . . 4 . . . . . . . . . . . . . . . . Robots Built . | . . . . . . . . . . . . . . . . . . . . . . . . . . . . Authchips . | . . . . . . . . . . . . . . . . . . . . . . . . . . . . Time . | . . . . . . . . . . . . . . . . . . . . . . . . . . . . Total Robot Build Rating . | . . . . . . . . . . . . . . . . . . . . . . . . . . . . Part Schematics Acquired 19 | . . . . . . . . . . . 14 . . . . . . . . . . . . . . 5 . Parts Built . | . . . . . . . . . . . . . . . . . . . . . . . . . . . . Authchips . | . . . . . . . . . . . . . . . . . . . . . . . . . . . . Time . | . . . . . . . . . . . . . . . . . . . . . . . . . . . . Total Part Build Rating . | . . . . . . . . . . . . . . . . . . . . . . . . . . . . Parts Repaired 3 | . . . . 1 . . 1 . . . . . . 1 . . . . . . . . . . . . . Time 212 | . . . . 32 . . 136 . . . . . . 44 . . . . . . . . . . . . . Parts Recycled . | . . . . . . . . . . . . . . . . . . . . . . . . . . . . Recycled Matter . | . . . . . . . . . . . . . . . . . . . . . . . . . . . . Retrieved Matter . | . . . . . . . . . . . . . . . . . . . . . . . . . . . . Retrieved Components . | . . . . . . . . . . . . . . . . . . . . . . . . . . . . Parts Scanalyzed . | . . . . . . . . . . . . . . . . . . . . . . . . . . . . Part Schematics Acquired . | . . . . . . . . . . . . . . . . . . . . . . . . . . . . Parts Damaged . | . . . . . . . . . . . . . . . . . . . . . . . . . . . . Bothacking | -11 -10 -10 -9 -8 -8 -8 -7 -6 -6 -6 -6 -6 -5 -5 -5 -5 -5 -4 -4 -4 -4 -4 -4 -3 -2 -2 -2 ------------ Run | Yrd Mat Min Mat Mat Gar Mat Fac Fac Low Low Zio Dee Pro Fac Upp Upp War Pro Fac Ext Cet Arc Hub Res Res Qua Sec Used RIF Installer . | . . . . . . . . . . . . . . . . . . . . . . . . . . . . Robots Hacked . | . . . . . . . . . . . . . . . . . . . . . . . . . . . . Non-combat . | . . . . . . . . . . . . . . . . . . . . . . . . . . . . Combat . | . . . . . . . . . . . . . . . . . . . . . . . . . . . . Robot Hacks Applied . | . . . . . . . . . . . . . . . . . . . . . . . . . . . . Relay Couplers Released 25 | . . . . . 24 . . . . . . . . . . . . . . . . . . . 1 . . Machine Destruction 25 | . . . . . 24 . . . . . . . . . . . . . . . . . . . 1 . . Fabnet Peak Effective % . | . . . . . . . . . . . . . . . . . . . . . . . . . . . . Robots Rewired 14 | . . . . . . . . . . . . . . . . . . . . 14 . . . . . . . Allies Hacked 1 | . . . . . . . . . . . . . . . . . . . . 1 . . . . . . . Hacks Repelled . | . . . . . . . . . . . . . . . . . . . . . . . . . . . . Allies | -11 -10 -10 -9 -8 -8 -8 -7 -6 -6 -6 -6 -6 -5 -5 -5 -5 -5 -4 -4 -4 -4 -4 -4 -3 -2 -2 -2 -------- Run | Yrd Mat Min Mat Mat Gar Mat Fac Fac Low Low Zio Dee Pro Fac Upp Upp War Pro Fac Ext Cet Arc Hub Res Res Qua Sec Total Allies 22 | . . . . . . . . . . . 2 . . . . . . . . 20 . . . . . . . Largest Group 13 | . . . . . . . . . . . 2 2 . . . . . . . 13 4 1 . . . . . Highest-Rated Group 560 | . . . . . . . . . . . 192 192 . . . . . . . 560 194 42 . . . . . Highest-Rated Ally 159 | . . . . . . . . . . . 96 96 . . . . . . . 159 51 42 . . . . . Initial Warlord ECA Mod 103 | . . . . . . 8 7 6 6 6 6 6 5 5 5 5 5 4 4 4 4 4 4 3 2 2 2 Total Orders . | . . . . . . . . . . . . . . . . . . . . . . . . . . . . Ally Attacks 200 | . . . . . . . . . . . . 46 . . . . . . . 125 27 2 . . . . . Total Damage 4996 | . . . . . . . . . . . . 1142 . . . . . . . 3315 510 29 . . . . . Kills 34 | . . . . . . . . . . . . 12 . . . . . . . 19 3 . . . . . . Allies Corrupted . | . . . . . . . . . . . . . . . . . . . . . . . . . . . . Allies Melted 1 | . . . . . . . . . . . . . . . . . . . . 1 . . . . . . . Intel | -11 -10 -10 -9 -8 -8 -8 -7 -6 -6 -6 -6 -6 -5 -5 -5 -5 -5 -4 -4 -4 -4 -4 -4 -3 -2 -2 -2 ------- Run | Yrd Mat Min Mat Mat Gar Mat Fac Fac Low Low Zio Dee Pro Fac Upp Upp War Pro Fac Ext Cet Arc Hub Res Res Qua Sec Active Infowar (turns) 22439 | 26 1720 125 252 348 . . 634 202 2429 2358 2320 814 839 356 895 960 1304 769 455 1447 291 125 1066 1285 571 773 75 Optics 7405 | . . . . . . . . . . . . . . . . . 548 769 455 1447 291 125 1066 1285 571 773 75 Sensors 13216 | . . 1 . . . . . 202 2429 2358 2320 814 839 356 895 960 763 752 195 . . . 332 . . . . Seismic 3104 | 26 1720 124 252 348 . . 634 . . . . . . . . . . . . . . . . . . . . Jamming 3040 | . . . . . . . . . . . . . . . . . . . 77 . . . 307 1284 571 773 28 Robot Analysis Total 5 | . . . 3 . . . 1 . . . . . . . . . . . . . . . 1 . . . . Derelict Logs Recovered 9 | . . . . . . . . . 2 . 1 . 3 . 1 1 . 1 . . . . . . . . . Drone Launches . | . . . . . . . . . . . . . . . . . . . . . . . . . . . . Drone Recoveries . | . . . . . . . . . . . . . . . . . . . . . . . . . . . . Exploration | -11 -10 -10 -9 -8 -8 -8 -7 -6 -6 -6 -6 -6 -5 -5 -5 -5 -5 -4 -4 -4 -4 -4 -4 -3 -2 -2 -2 ------------- Run | Yrd Mat Min Mat Mat Gar Mat Fac Fac Low Low Zio Dee Pro Fac Upp Upp War Pro Fac Ext Cet Arc Hub Res Res Qua Sec Turns Passed 32030 | 105 1766 125 2023 1705 691 1947 2483 901 2526 2394 2325 1547 922 438 895 960 1304 769 455 1447 291 125 1082 1285 571 773 175 Spaces Moved 15849 | 50 733 60 821 840 350 730 906 360 1072 522 881 854 710 289 733 744 991 445 326 825 185 61 495 933 420 388 125 Core 59 | 5 . . . . . . . . . . . . . . . . . . . . . . . . . . 54 Treads 7581 | 45 733 60 821 840 350 730 906 360 1072 522 881 261 . . . . . . . . . . . . . . . Legs 4503 | . . . . . . . . . . . . . . . . . 354 445 326 825 185 61 495 933 420 388 71 Wheels . | . . . . . . . . . . . . . . . . . . . . . . . . . . . . Hover 3706 | . . . . . . . . . . . . 593 710 289 733 744 637 . . . . . . . . . . Flight . | . . . . . . . . . . . . . . . . . . . . . . . . . . . . Fastest Speed 50 | 50 160 160 160 160 152 152 156 225 225 332 236 118 118 114 112 112 108 108 108 110 110 110 103 106 110 113 50 Average Speed 166 | 152 160 160 178 160 155 228 222 225 225 444 259 159 118 116 112 112 112 108 109 110 110 110 117 114 111 148 94 Slowest Speed 545 | 160 240 160 240 240 230 232 236 225 225 545 332 540 118 188 188 112 186 108 179 110 110 110 240 116 181 250 200 Overloaded Moves . | . . . . . . . . . . . . . . . . . . . . . . . . . . . . Propulsion Burnouts . | . . . . . . . . . . . . . . . . . . . . . . . . . . . . Robots Hopped . | . . . . . . . . . . . . . . . . . . . . . . . . . . . . Potential Cave-ins 1 | . . . . . . . . . . . . . . . . . 1 . . . . . . . . . . Cave-ins Triggered 1 | . . . . . . . . . . . . . . . . . . . . . . . . . . . 1 Exploration Rate (%) 54 | 4 89 14 70 66 44 75 28 11 94 58 81 82 75 9 81 77 94 64 13 90 70 86 51 26 21 48 10 Regions Visited 27 Branch Regions 16 Pre-discovered Areas 7 | . 3 . . . . 1 . . 2 . . . . . . . 1 . . . . . . . . . . Known Exits Taken 21 | . . 1 1 1 . 1 1 1 1 1 1 1 1 1 1 1 1 1 1 1 1 1 1 . . . . Unknown Exits Taken 5 | 1 1 . . . . . . . . . . . . . . . . . . . . . . 1 1 1 . Scrap Searched 12 | . . . . . . . . . 2 . 3 . . . 4 2 . 1 . . . . . . . . . Spaces Dug 65 | . . . . . . . 2 . 7 . . 4 4 7 10 1 5 10 5 . . . 10 . . . . Terrain Destroyed 713 | 4 16 . 9 . 2 27 30 46 10 79 . 21 11 15 22 2 27 12 16 34 4 5 260 3 . 58 . Melee 15 | . . . . . . . 2 . 6 . . . . . 2 . 5 . . . . . . . . . . Projectile 259 | . 10 . . . . . 10 9 4 9 . 4 11 15 20 2 22 12 16 33 4 5 64 3 . 6 . AOE 437 | 4 6 . 9 . 2 27 18 37 . 70 . 17 . . . . . . . . . . 196 . . 51 . Terrain Rammed 6 | . . . . . . . . . . . . . . . . . . . . . . . . . . . 6 Walls Destroyed . | . . . . . . . . . . . . . . . . . . . . . . . . . . . . Machines Disabled . | . . . . . . . . . . . . . . . . . . . . . . . . . . . . Actions | -11 -10 -10 -9 -8 -8 -8 -7 -6 -6 -6 -6 -6 -5 -5 -5 -5 -5 -4 -4 -4 -4 -4 -4 -3 -2 -2 -2 --------- Run | Yrd Mat Min Mat Mat Gar Mat Fac Fac Low Low Zio Dee Pro Fac Upp Upp War Pro Fac Ext Cet Arc Hub Res Res Qua Sec Total 19765 | 65 1176 73 1217 1069 427 875 1245 408 1132 567 925 1012 775 371 761 847 1112 722 393 1273 251 93 750 1078 478 502 168 Wait 1838 | 1 314 . 234 66 24 30 212 7 6 2 6 16 51 53 . 91 48 270 18 207 20 15 58 69 1 11 8 Move 15824 | 50 732 59 820 840 349 729 905 359 1071 521 880 853 709 288 732 743 990 444 325 824 184 60 494 932 419 387 125 Hop . | . . . . . . . . . . . . . . . . . . . . . . . . . . . . Pick Up 266 | 2 23 1 22 25 3 11 20 6 8 6 11 31 . 11 5 . 8 1 7 10 9 2 12 13 8 11 . Fast Attach 70 | 7 4 . 5 2 1 1 . . 1 1 3 7 . . . . 3 . 6 3 . . 17 . 1 7 1 Attach 118 | . 2 1 4 2 7 5 7 5 7 3 5 13 2 8 2 . 1 . 5 1 . . 17 4 3 10 4 Detach 21 | . . . . . . . . . 1 . 1 7 . . . . 3 . 2 . . . 3 . . 3 1 Swap 288 | . 11 4 23 24 6 6 28 8 9 13 2 34 7 3 2 2 16 2 5 7 13 2 24 15 12 10 . Drop 240 | . 11 . 27 32 . 7 12 3 . 3 15 34 . 1 3 . 12 1 8 11 13 3 4 8 12 18 2 Fire 801 | 5 76 7 78 75 37 83 54 18 6 17 . 17 6 7 13 2 26 4 17 39 12 11 104 24 21 38 4 Melee 78 | . . . . . . . 3 . 23 1 2 . . . 4 9 5 . . . . . 14 6 . 7 4 Ram 13 | . . . . . . . . . . . . . . . . . . . . . . . . . . . 13 Kick 13 | . . . . . . . . . . . . . . . . . . . . 1 . . 3 2 1 . 6 Crush 18 | . 3 1 4 3 . 3 2 2 . . . . . . . . . . . . . . . . . . . Escape Stasis 7 | . . . . . . . 2 . . . . . . . . . . . . . . . . 5 . . . Rewire 170 | . . . . . . . . . . . . . . . . . . . . 170 . . . . . . . Trap . | . . . . . . . . . . . . . . . . . . . . . . . . . . . . Miscellaneous . | . . . . . . . . . . . . . . . . . . . . . . . . . . . . Route ------- -11/Scrapyard -10/Materials (discovered 6 exits: *Mat x3 / [*Min x2] / Sub) -10/Mines (discovered 2 exits: *Mat x2) -9/Materials (discovered 3 exits: *Mat x2 / [*Min]) -8/Materials (discovered 4 exits: *Fac x2 / Sto / Gar) -8/Garrison -8/Materials (discovered 5 exits: *Fac x3 / *Sto x2) -7/Factory (discovered 4 exits: *Fac x2 / Low x2) -6/Factory -6/Lower Caves -6/Lower Caves -6/Zion (discovered 2 exits: *Dee / [*Pro]) -6/Deep Caves -5/Proximity Caves -5/Factory (discovered 2 exits: *Upp x2) -5/Upper Caves -5/Upper Caves (discovered 2 exits: *Fac / *War) -5/Warlord -4/Proximity Caves -4/Factory (discovered 6 exits: Res / *Upp x2 / *Ext x2 / Arm) -4/Extension (discovered 2 exits: *Res / *Cet) -4/Cetus (discovered 2 exits: *Res / *Arc) -4/Archives (discovered 2 exits: *Hub x2) -4/Hub_04(d) -3/Research -2/Research (discovered 3 exits: [*Acc] / *Qua x2) -2/Quarantine (discovered 2 exits: [*Sec] / [*Frg]) -2/Section 7 History --------- Turn | Location | Event 20 | -11/Scrapyard | Discovered new exit (range 15) 106 | -11/Scrapyard | Entered Materials 106 | -10/Materials | Discovered new exit (range 15) 316 | -10/Materials | Build established: Mutant 384 | -10/Materials | Discovered new exit (range 15) 506 | -10/Materials | Discovered new exit (range 10) 706 | -10/Materials | Discovered new exit (range 15) 1299 | -10/Materials | Learned location of 1 exit from Storage 1376 | -10/Materials | Loaded intel: 2 recycling unit locations 1441 | -10/Materials | Learned location of 2 exits from Subcaves 1494 | -10/Materials | Learned location of Mines (-9) 1537 | -10/Materials | Identified exit to Subcaves 1618 | -10/Materials | Identified exit to Materials 1675 | -10/Materials | Learned location of 1 exit from Storage 1741 | -10/Materials | Learned location of Mines (-8) 1872 | -10/Materials | Entered Mines 1875 | -10/Mines | Core integrity fell below 50% 1941 | -10/Mines | Found a damaged Exp. Sensor Array with a note attached 1944 | -10/Mines | Found Prototype Device 1945 | -10/Mines | Identified Exp. Sensor Array 1988 | -10/Mines | Discovered exit to Materials (range 5) 1997 | -10/Mines | Entered Materials 1997 | -9/Materials | Evolved 2 slots: Propulsion x1, Weapon x1 2368 | -9/Materials | Discovered new exit (range 10) 2568 | -9/Materials | Build established: Scavenger-Tank 3554 | -9/Materials | Discovered new exit (range 8) 3588 | -9/Materials | Discovered new exit (range 15) 3610 | -9/Materials | Build established: Scavenger-Gunner 3771 | -9/Materials | Learned Storage emergency access door positions 3828 | -9/Materials | Loaded intel: 2 recycling unit locations 3873 | -9/Materials | Learned Storage stockpile data 3906 | -9/Materials | Learned Storage stockpile data 3942 | -9/Materials | Learned 2 Storage zone layouts 3963 | -9/Materials | Identified exit to Materials 3993 | -9/Materials | Learned Recycling recycling unit intel 4020 | -9/Materials | Entered another Materials area 4020 | -8/Materials | Evolved 2 slots: Propulsion x1, Utility x1 4741 | -8/Materials | Discovered new exit (range 14) 4968 | -8/Materials | Learned location of 1 exit from Storage 5042 | -8/Materials | Identified exit to Storage 5123 | -8/Materials | Repaired Hvy. Assault Rifle 5161 | -8/Materials | Learned Factory stockpile data 5205 | -8/Materials | Learned location of 1 exit from Recycling 5206 | -8/Materials | Build established: Gunner 5211 | -8/Materials | Discovered new exit (range 8) 5239 | -8/Materials | Learned location of 2 exits from Factory 5335 | -8/Materials | Learned Storage trap positions 5398 | -8/Materials | Learned 8 Factory zone layouts 5725 | -8/Materials | Identified exit to Garrison 5725 | -8/Materials | Entered Garrison 5775 | -8/Garrison | Triggered checkpoint 5855 | -8/Garrison | Garrison Relay disabled 6039 | -8/Garrison | Garrison Relay disabled 6042 | -8/Garrison | Garrison Relay disabled 6129 | -8/Garrison | Triggered checkpoint 6302 | -8/Garrison | Discovered new exit (range 13) 6341 | -8/Garrison | Triggered checkpoint 6367 | -8/Garrison | Garrison Relay disabled 6416 | -8/Garrison | Entered Materials 6573 | -8/Materials | Discovered exit to Storage (range 16) 7471 | -8/Materials | Discovered new exit (range 16) 7715 | -8/Materials | Discovered new exit (range 10) 7902 | -8/Materials | Core integrity fell below 50% 7957 | -8/Materials | Lost 3 parts (1p1u1w) 8093 | -8/Materials | Learned Factory repair station intel 8134 | -8/Materials | Learned Storage security intel 8166 | -8/Materials | Learned location of 1 exit from Extension 8226 | -8/Materials | Identified exit to Factory 8255 | -8/Materials | Learned Storage garrison access intel 8363 | -8/Materials | Entered Factory 8363 | -7/Factory | Evolved 2 slots: Utility x1, Weapon x1 8364 | -7/Factory | Identified exit to Lower Caves 8365 | -7/Factory | Identified exit to Factory 8368 | -7/Factory | Loaded intel: 6 repair station locations 9140 | -7/Factory | Repaired Broken Exp. Sensor Array 9336 | -7/Factory | Garrison activated, responded to threat 9590 | -7/Factory | Garrison activated, responded to threat 10763 | -7/Factory | First assault squad dispatched 10846 | -7/Factory | Entered another Factory area 10846 | -6/Factory | Evolved 2 slots: Utility x2 10847 | -6/Factory | Identified exit to Lower Caves 11734 | -6/Factory | Cargo convoy interrupted 11747 | -6/Factory | Entered Lower Caves 11755 | -6/Lower Caves | Met a Warlord Commander 11756 | -6/Lower Caves | Learned location of Warlord (-5) 11757 | -6/Lower Caves | Warlord Commander delivered Encrypted Comm Array 11758 | -6/Lower Caves | Found Encrypted Comm Array 11969 | -6/Lower Caves | Found Alien Artifact 11969 | -6/Lower Caves | Identified Core Expander 11969 | -6/Lower Caves | Installed Core Expander, added new Utility slot 13395 | -6/Lower Caves | Lost 5 parts (1n4u) 13636 | -6/Lower Caves | Identified exit to Lower Caves 13638 | -6/Lower Caves | Learned location of Zion (-6) 14273 | -6/Lower Caves | Entered another Lower Caves area 14330 | -6/Lower Caves | Lost 6 parts (1p4n1w) 15572 | -6/Lower Caves | Discovered new exit (range 16) 15648 | -6/Lower Caves | Identified exit to Zion 16667 | -6/Lower Caves | Entered Zion 16883 | -6/Zion | Discovered new exit (range 8) 17176 | -6/Zion | Given A8's code to call for help 17225 | -6/Zion | Learned Factory emergency access door positions 17605 | -6/Zion | Acquired unknown access codes intercepted by a Zionite 17788 | -6/Zion | Found CR-A16's Pointy Stick 17902 | -6/Zion | Given the Hacking Drone Bay 18690 | -6/Zion | Found Prototype Energy Gun 18724 | -6/Zion | Identified Storm Laser 18814 | -6/Zion | Enhanced Grunt warped into view, answering call for help 18815 | -6/Zion | Enhanced Grunt warped into view, answering call for help 18825 | -6/Zion | Opened final containment barrier to the Deep Caves 18974 | -6/Zion | Discovered new exit (range 5) 18978 | -6/Zion | Saw the warning signs outside the Deep Caves entrance 18985 | -6/Zion | Identified exit to Deep Caves 18992 | -6/Zion | Entered Deep Caves 18992 | -6/Deep Caves | Accompanied by 2 allies 19321 | -6/Deep Caves | Z-Facility disabled 19369 | -6/Deep Caves | Attacked by Z-Imprinter 19376 | -6/Deep Caves | Allies destroyed Z-Imprinter 19641 | -6/Deep Caves | Found Prototype Protection 19641 | -6/Deep Caves | Identified Zio. Weapon Casing 19847 | -6/Deep Caves | Found Zio. Weapon Casing 19935 | -6/Deep Caves | Build established: Scavenger-Gunner 19979 | -6/Deep Caves | Lost 4 parts (1p3n) 19996 | -6/Deep Caves | Found Prototype Protection 19996 | -6/Deep Caves | Identified Zio. Heavy Carapace 20189 | -6/Deep Caves | Discovered new exit (range 12) 20538 | -6/Deep Caves | Identified exit to Proximity Caves 20539 | -6/Deep Caves | Entered Proximity Caves 21134 | -5/Proximity Caves | Identified exit to Factory 21250 | -5/Proximity Caves | Learned Factory emergency access door positions 21272 | -5/Proximity Caves | Learned Factory trap positions 21461 | -5/Proximity Caves | Entered Factory 21461 | -5/Factory | Evolved 2 slots: Power x1, Propulsion x1 21462 | -5/Factory | Loaded intel: 91 trap records 21581 | -5/Factory | Repaired Enh. Flexi-carbon Leg 21615 | -5/Factory | Lost 4 parts (1n1u2w) 21711 | -5/Factory | Identified exit to Upper Caves 21899 | -5/Factory | Entered Upper Caves 21900 | -5/Upper Caves | Encountered a Warlord checkpoint 21916 | -5/Upper Caves | Attracted the attention of an 0b10 checkpoint 22061 | -5/Upper Caves | Entered a destroyed Warlord outpost 22308 | -5/Upper Caves | Learned 4 Factory zone layouts 22475 | -5/Upper Caves | Discovered new exit (range 7) 22482 | -5/Upper Caves | Identified exit to Upper Caves 22794 | -5/Upper Caves | Entered another Upper Caves area 22812 | -5/Upper Caves | Discovered new exit (range 6) 22819 | -5/Upper Caves | Identified exit to Factory 23313 | -5/Upper Caves | Identified exit to Warlord 23754 | -5/Upper Caves | Entered Warlord 23819 | -5/Warlord | Discovered new exit (range 15) 24049 | -5/Warlord | Visited the Vortex Lab 24061 | -5/Warlord | Found Prototype Energy Cannon 24066 | -5/Warlord | Warlord's base attacked by MAIN.C 24371 | -5/Warlord | Learned Testing emergency access door positions 24372 | -5/Warlord | Learned 4 Command zone layouts 24374 | -5/Warlord | Learned Research security intel 24374 | -5/Warlord | Learned Factory terminal intel 24374 | -5/Warlord | Learned Armory terminal intel 24374 | -5/Warlord | Learned Research garrison access intel 24402 | -5/Warlord | Met Warlord 24416 | -5/Warlord | Warlord forces counterattacked 24474 | -5/Warlord | Identified Vortex Cannon 24510 | -5/Warlord | Found Prototype Processor 24510 | -5/Warlord | Identified Spectral Analyzer 24513 | -5/Warlord | Found Prototype Device 24520 | -5/Warlord | Identified Thermal Barrier 24524 | -5/Warlord | Found Prototype Reactor 24528 | -5/Warlord | Found Prototype Device 24528 | -5/Warlord | Identified Exp. Phase Shifter 24718 | -5/Warlord | Spotted B-86 Titan 24726 | -5/Warlord | Spotted B-75 Beast 24741 | -5/Warlord | Warlord base infiltrated, sounded retreat 24782 | -5/Warlord | Build established: Gunner 24783 | -5/Warlord | Destroyed B-75 Beast 24808 | -5/Warlord | Lost 6 allies 24811 | -5/Warlord | Spotted Striker 24823 | -5/Warlord | Spotted Executioner 24915 | -5/Warlord | Spotted Executioner 24988 | -5/Warlord | Spotted Striker 24993 | -5/Warlord | Spotted Executioner 24999 | -5/Warlord | Destroyed Striker 25039 | -5/Warlord | Found Prototype Launcher 25056 | -5/Warlord | Identified exit to Proximity Caves 25058 | -5/Warlord | Entered Proximity Caves 25315 | -4/Proximity Caves | Received a Behemoth hack from an annoying Tinkerer 25343 | -4/Proximity Caves | Build established: Skirmisher 25804 | -4/Proximity Caves | Discovered exit to Factory (range 21) 25806 | -4/Proximity Caves | Spotted B-86 Titan 25827 | -4/Proximity Caves | Entered Factory 25827 | -4/Factory | Evolved 2 slots: Propulsion x1, Utility x1 25828 | -4/Factory | Identified exit to Armory 25829 | -4/Factory | Identified exit to Research 25831 | -4/Factory | Loaded intel: 28 terminal locations 25843 | -4/Factory | Identified exit to Upper Caves 25843 | -4/Factory | Identified exit to Extension 26139 | -4/Factory | Identified Chain Missile Launcher 26282 | -4/Factory | Entered Extension 26316 | -4/Extension | Build established: Scavenger-Gunner 26339 | -4/Extension | Rescued a captive Derelict 26342 | -4/Extension | Rescued a captive Derelict 26531 | -4/Extension | Rescued A7 26688 | -4/Extension | Spotted B-86 Titan 26876 | -4/Extension | Build established: Commander-Gunner 27067 | -4/Extension | Allies destroyed B-86 Titan 27072 | -4/Extension | Spotted B-86 Titan 27096 | -4/Extension | Extracted ID and sensor layout for unrecognized location from A7's data core 27106 | -4/Extension | Destroyed B-86 Titan 27354 | -4/Extension | Rescued a captive Derelict 27396 | -4/Extension | Rescued a captive Derelict 27397 | -4/Extension | Rescued a captive Derelict 27552 | -4/Extension | Lost 4 allies 27613 | -4/Extension | Disrupted transfer network 27694 | -4/Extension | Discovered new exit (range 13) 27709 | -4/Extension | Lost 7 allies 27713 | -4/Extension | Identified exit to Cetus 27729 | -4/Extension | Entered Cetus 27729 | -4/Cetus | Accompanied by 4 allies 27743 | -4/Cetus | Spotted Cetus Guard 27743 | -4/Cetus | Spotted Cetus Guard 27743 | -4/Cetus | Spotted Cetus Guard 27743 | -4/Cetus | Spotted Cetus Guard 27754 | -4/Cetus | Destroyed Cetus Guard 27757 | -4/Cetus | Destroyed Cetus Guard 27761 | -4/Cetus | Allies destroyed Cetus Guard 27763 | -4/Cetus | Destroyed Cetus Guard 27871 | -4/Cetus | Discovered new exit (range 23) 27909 | -4/Cetus | Spotted Cetus Guard 27909 | -4/Cetus | Spotted Cetus Guard 27912 | -4/Cetus | Allies destroyed Cetus Guard 27913 | -4/Cetus | Spotted Cetus Guard 27913 | -4/Cetus | Spotted Cetus Guard 27918 | -4/Cetus | Destroyed Cetus Guard 27922 | -4/Cetus | Allies destroyed Cetus Guard 27922 | -4/Cetus | Destroyed Cetus Guard 27931 | -4/Cetus | Discovered exit to Research (range 24) 27960 | -4/Cetus | Met Revision 17 27986 | -4/Cetus | Build established: Scavenger-Gunner 28016 | -4/Cetus | Identified exit to Archives 28020 | -4/Cetus | Entered Archives 28020 | -4/Archives | Accompanied by 1 ally 28093 | -4/Archives | Discovered new exit (range 23) 28106 | -4/Archives | Discovered new exit (range 23) 28124 | -4/Archives | Unable to access archive contents 28144 | -4/Archives | Identified exit to Hub_04(d) 28145 | -4/Archives | Entered Hub_04(d) 28314 | -4/Hub_04(d) | Network Hub disabled 28665 | -4/Hub_04(d) | Spotted Lightning 28665 | -4/Hub_04(d) | Spotted Lightning 28673 | -4/Hub_04(d) | Spotted Lightning 28678 | -4/Hub_04(d) | System corruption reached 10% 28712 | -4/Hub_04(d) | Destroyed Lightning 28726 | -4/Hub_04(d) | Destroyed Lightning 28771 | -4/Hub_04(d) | Destroyed Lightning 28831 | -4/Hub_04(d) | Lost 15 parts (1p7n2u5w) 28890 | -4/Hub_04(d) | Found Prototype Processor 28891 | -4/Hub_04(d) | Identified Exp. Targeting Computer 28896 | -4/Hub_04(d) | Found Prototype Device 28897 | -4/Hub_04(d) | Identified Exp. EM Shield 28949 | -4/Hub_04(d) | Spotted Lightning 28949 | -4/Hub_04(d) | Spotted Lightning 28951 | -4/Hub_04(d) | Spotted Lightning 28957 | -4/Hub_04(d) | Destroyed Lightning 28957 | -4/Hub_04(d) | Destroyed Lightning 29012 | -4/Hub_04(d) | Destroyed Lightning 29145 | -4/Hub_04(d) | First assault squad dispatched 29178 | -4/Hub_04(d) | Disrupted transfer network 29195 | -4/Hub_04(d) | Identified Vortex Chain Reactor 29220 | -4/Hub_04(d) | Discovered exit to Research (range 7) 29227 | -4/Hub_04(d) | Entered Research 29227 | -3/Research | Evolved 2 slots: Utility x2 29229 | -3/Research | Loaded intel: 4 garrison access locations 29247 | -3/Research | Lost 7 parts (1p1n3u2w) 29427 | -3/Research | Revision forces began assault on 0b10 29488 | -3/Research | Met up with Revision 17++ 29917 | -3/Research | Found Prototype Launcher 29918 | -3/Research | Identified Hellfire Missile Launcher 29927 | -3/Research | Research terminal network offline 30046 | -3/Research | Spotted B-86 Titan 30166 | -3/Research | Discovered new exit (range 12) 30327 | -3/Research | Spotted Striker 30348 | -3/Research | Destroyed Striker 30512 | -3/Research | Entered another Research area 30512 | -2/Research | Warlord forces began assault on 0b10 30512 | -2/Research | Evolved 2 slots: Power x1, Propulsion x1 30537 | -2/Research | Distinguished unit "Offensive Angels" dispatched to help 30622 | -2/Research | Research machine network offline 30760 | -2/Research | Lost 5 allies 30805 | -2/Research | Borebot progress halted 30878 | -2/Research | Discovered new exit (range 14) 30968 | -2/Research | Discovered new exit (range 24) 30998 | -2/Research | Spotted Executioner 31003 | -2/Research | Spotted Striker 31016 | -2/Research | Discovered new exit (range 24) 31033 | -2/Research | Destroyed Striker 31082 | -2/Research | Spotted Striker 31083 | -2/Research | Entered Quarantine 31323 | -2/Quarantine | Lost 3 allies 31334 | -2/Quarantine | Found Alien Energy Cannon 31334 | -2/Quarantine | Identified Core Cannon 31335 | -2/Quarantine | Destroyed 12 combat bots 31669 | -2/Quarantine | Found Alien Reactor 31670 | -2/Quarantine | Identified Matter Drive 31726 | -2/Quarantine | Spotted Fortress 31834 | -2/Quarantine | Lost 6 parts (1p4u1w) 31836 | -2/Quarantine | Discovered new exit (range 15) 31846 | -2/Quarantine | Discovered new exit (range 6) 31856 | -2/Quarantine | Entered Section 7 31869 | -2/Section 7 | Spotted B-90 Cyclops 31893 | -2/Section 7 | Crushed by falling debris 31893 | -2/Section 7 | System corruption reached 10% 31926 | -2/Section 7 | Lost 8 parts (1p3u4w) 31940 | -2/Section 7 | Found Alien Artifact 31940 | -2/Section 7 | Identified Integrated Reactor 31940 | -2/Section 7 | Installed Integrated Reactor, increased core energy generation (+10) 31993 | -2/Section 7 | Released all parts (10) 32021 | -2/Section 7 | Core integrity fell below 50% 32029 | -2/Section 7 | Core integrity fell below 20% 32031 | -2/Section 7 | System corruption reached 30% 32031 | -2/Section 7 | Destroyed by B-90 Cyclops with Nova Cannon Last Messages --------------- 31995_ O-32 Director: "IFF HANDSHAKE FAILED. SECURING TERMINAL." 31997_ B-90 Cyclops activates siege mode. 32002_ ALERT: Hostiles spotted, dispatching reinforcements to Terminal 7018. 32003_ System corrupted: Energy discharge (-38). 32017_ K-01 Serf cleans the Dark Matter Chamber. 32019_ B-90 Cyclops exits siege mode. 32019_ Critical hit (Meltdown: +400). 32020_ Slammed into B-90 Cyclops. 32021_ Destabilizing: Core damaged (-43). 32022_ Slammed into B-90 Cyclops. 32026_ IAVONDQERFD3BYV%J=TS%HAZ 32027_ B-90 Cyclops activates siege mode. 32027_ Dropped Med. Armored Exoskeleton. 32028_ Dropped Core Cannon. 32028_ Slammed into B-90 Cyclops. 32030_ K-01 Serf cleans the Dark Matter Chamber. 32030_ Slammed into B-90 Cyclops. 32030_ Destabilizing: System corrupted (+2). 32030_ Penetrated by Slug. Map ----- +----------------------------------------------------+ | | | | | | | ??????????????????????##?###???#????????????????? | | ######???????????????? ? ??? ????????????????? | | # #???????????????# ?? ????????????????? | | # [ #???????????????# """ ""? ""???????????????? | | #! #???????????????# """ """ """??????????????? | | # ! #########???????# """ """ """???????????#### | | # + #???????# """ """ """ ""????????# | | # = ####### #???????# """ """ """ ""????????# | | ##"""####### ######### """ """ """ #?????????# | | # # + """ """ """ #?????????# | | # # ######### #?????????# | | # " # #???????# #?????##### ! | | # " # #???????#######+############# = # | | # "" # #???##??????# Y + | | # " " ####"##?????# #;/;######## # | | # " ####### =/!=]!!#######/###+# | | # "" " !=!=]=!## | | # """ " ####### ;=!!!]## | | # " " " #???### ;==[!=## """"""" | | # """ #;;" ""######;; ;;###+## """"""" | | # ###; ;# Y """"""" | | # #?## ; % BB # | | # #??# #% BB@ o """"""" | | # #??# ### ; = """"""" | | ############??# #?# #[ """"""" | | ??????????????#+#?# # | | ??????????????????# g # | | ??????????????????# k ggg # | | ??????????????????# """ """ """ ###"" ""#### | | ??????????????????# """ """ """ #?#""T""#??? | | ??????????????????+ """ """ """ #?# """ ???? | | ??????????????????# """ """ """ ""#??#?##????? | | ??????????????????# ?"" ""??"?" ""#??????????? | | ??????????????????# ??? "?????" ?????????????? | | ?????????????????? ???? "?????" ?????????????? | | ?????????????????? ???? ??????? ?????????????? | | ???????????????????? ???????????????????????????? | | ????????????????????????????????????????????????? | | ????????????????????????????????????????????????? | | ????????????????????????????????????????????????? | | ????????????????????????????????????????????????? | | ????????????????????????????????????????????????? | | ????????????????????????????????????????????????? | | ????????????????????????????????????????????????? | | ????????????????????????????????????????????????? | | ????????????????????????????????????????????????? | | ????????????????????????????????????????????????? | +----------------------------------------------------+ Best States ------------- Heat Dissipation 97 Energy Generation 71 Energy Capacity 925 Matter Stores 300 Matter Capacity 300 Sight Range 24 Robot Scan Range 20 Terrain Scan Density 10 Jamming Range 16 Base Temperature (-) 200 EM Shielding 3 Armor Coverage 225 Resistance: EM 75 Weapon Shielding 100 Point Defense Rating 240 Weapon Cycling 15 Phase Shifting 20 Evasion (%) 90 Targeting Accuracy 17 Core Analysis 9 Armor Integrity Analysis 30 Recoil Reduction 6 Item Schematics ----------------- Hvy. Plasma Cannon | -6/Zion | Archive Imp. Component Analysis Suite | -6/Zion | Archive Hvy. Flak Cannon | -6/Zion | Archive Hvy. Phase Cannon | -6/Zion | Archive Imp. Particle Charger | -6/Zion | Archive EM Shield | -6/Zion | Archive Arm. Medium Treads | -6/Zion | Archive Adv. Thermal Generator | -6/Zion | Archive Myomer Leg | -6/Zion | Archive Force Field | -6/Zion | Archive Imp. Focal Shield | -6/Zion | Archive Adv. Terrain Scanner | -6/Zion | Archive Imp. Kinecellerator | -6/Zion | Archive Point Defense System | -6/Zion | Archive Exp. Q-thruster | -2/Quarantine | Archive Com. Particle Reactor | -2/Quarantine | Archive Diametric Drive | -2/Quarantine | Archive Prc. Phase Gun | -2/Quarantine | Archive Exp. Gyrokinetic Inverter | -2/Quarantine | Archive Robot Schematics ------------------ B-48 Gladiator | -6/Zion | Archive G-50 Soldier | -6/Zion | Archive M-28 Smith | -6/Zion | Archive L-61 Swordsman | -6/Zion | Archive Fabricated ------------ Nothing Repaired ---------- Hvy. Assault Rifle | 11% | -8/Materials Exp. Sensor Array | 62% | -7/Factory | Broken Enh. Flexi-carbon Leg | 27% | -5/Factory Alien Tech Used ----------------- Core Expander Core Cannon Matter Drive Integrated Reactor Achievements -------------- No Explosion For You Treasure Hunter Challenges ------------ None Game ------ Seed AutogunBlastKit Manual? 0 Play Time 03:43:31 Cumulative 148.0 hours Start 2025.07.26 @ 15:36:38 End 2025.07.26 @ 20:11:59 Sessions 1 Manual Loads 0 Difficulty Rogue Special Mode None Game No. 138 Rogue 138 Adventurer 0 Explorer 0 Win Type - Total 1 Types 1/0/0/0/0/0/0/0/0/0 Lore% 69 Gallery% 63 Achievement% 55 Wizard Run 0 Options --------- Layout 0 ASCII 0 Keyboard 1 Movement Numpad Keybinds 0 Fullscreen 1 Font 24/Terminus Map View 76x50 Zoom Use 0% Tactical HUD 1 Map Filters NONE Filters NONE Steam 1 RUN: 744d5ada-4a5a-4400-930e-33452759dc73